Cogmind - Beta 17 @@@ ROGUE MODE // 2026.08.13 @ 15:23:54 Player: LandRaider Result: Destroyed by S-43 Plague with Heavy Machine Gun Performance ------------- Evolutions (7) 3500 Regions Visited (13) 2600 Robots Destroyed (73) 365 Value Destroyed (2380) 2380 Prototype IDs (10) 200 Alien Tech Used (0) 0 Bonus (1051) 1051 TOTAL SCORE: 10096 Bonus ------- Follower Combat Kills 232 Met Warlord at Base 500 MAIN.C Attacked Warlord 500 Warlord Defense Kills 94 Friendly Fire -275 Cogmind --------- Core Integrity 0/1300 Matter 214/300 Energy 100/100 System Corruption 0% Temperature Cool (12) Movement Core (200) Ox3 Location -3/Research Parts ------- > --- POWER (2) -------- (None) > --- PROPULSION (6) --- (None) > --- UTILITY (11) ----- Medium Storage Unit Advanced Visual Processing Unit Enhanced Optical Array Advanced Signal Interpreter > --- WEAPON (2) ------- (None) > --- INVENTORY (10) --- Advanced Signal Interpreter Advanced Targeting Computer Improved Remote Datajack Peak State ------------ > --- POWER ------------ Light Antimatter Reactor Light Antimatter Reactor > --- PROPULSION ------- Centrium Wheel Cooled Aerolev Unit Gravmag Array Gyrokinetic Inverter Improved Antigrav System > --- UTILITY ---------- Advanced Heat Sink Medium Storage Unit Advanced Weight Redist. System Structural Scanner Advanced Visual Processing Unit Enhanced Optical Array Advanced Signal Interpreter Transmission Jammer Cloaking Device Improved Medium Armor Plating Hacking Suite > --- WEAPON ----------- Beamcaster Vortex Rifle > --- INVENTORY -------- Fusion Compressor Advanced Signal Interpreter Advanced Targeting Computer Improved Utility Shielding Heavy Machine Gun Mini Grenade Launcher Improved Remote Datajack Great Maul [Rating: 105] Favorites ----------- Power Light Antimatter Reactor Engine Light Deuterium Engine Power Core Fusion Compressor Reactor Light Antimatter Reactor Propulsion Medium Treads Treads Medium Treads Leg Aluminum Leg Wheel Centrium Wheel Hover Unit Gravmag Array Flight Unit Flight Unit Utility Structural Scanner Device Structural Scanner Storage Medium Storage Unit Processor Advanced Visual Processing Unit Hackware Hacking Suite Protection Improved Medium Armor Plating Weapon Light Assault Rifle Energy Gun Field Laser Energy Cannon Advanced Plasma Cannon Ballistic Gun Light Assault Rifle Launcher Mini Grenade Launcher Special Weapon Improved Remote Datajack Impact Weapon Great Maul Slashing Weapon Mining Claw Special Melee Weapon Improved Datajack Build | -11 -10 -9 -8 -7 -7 -7 -6 -5 -5 -5 -4 -4 -3 ------- Run | Yrd Mat Mat Mat Fac Low Low Fac Fac Upp War Pro Fac Res Slots Evolved 14 | . . 2 2 2 . . 2 2 . . . 2 2 Power 1 | . . . . . . . . 1 . . . . . Propulsion 4 | . . 1 1 . . . . 1 . . . 1 . Utility 9 | . . 1 1 2 . . 2 . . . . 1 2 Weapon . | . . . . . . . . . . . . . . Parts Attached 118 | 6 16 16 18 3 15 1 6 9 3 7 8 4 6 Power 22 | 1 3 3 4 . 3 . . 1 . 2 2 . 3 Engine 11 | 1 3 3 1 . 2 . . . . 1 . . . Core 6 | . . . 3 . 1 . . 1 . 1 . . . Reactor 5 | . . . . . . . . . . . 2 . 3 Propulsion 26 | 2 3 3 5 1 4 . 2 3 . 1 . 2 . Treads 10 | . 2 3 4 1 . . . . . . . . . Leg 3 | 2 1 . . . . . . . . . . . . Wheel 2 | . . . . . . . . 1 . . . 1 . Hover 6 | . . . . . . . 2 2 . 1 . 1 . Flight 5 | . . . 1 . 4 . . . . . . . . Utility 38 | 1 6 7 5 1 4 . 4 2 1 1 4 1 1 Device 19 | . 1 6 3 . 3 . 1 2 . 1 2 . . Storage 5 | 1 3 . . . . . . . . . . . 1 Processor 3 | . . . . . . . 2 . . . . 1 . Hackware 1 | . . . . 1 . . . . . . . . . Protection 10 | . 2 1 2 . 1 . 1 . 1 . 2 . . Artifact . | . . . . . . . . . . . . . . Weapon 32 | 2 4 3 4 1 4 1 . 3 2 3 2 1 2 Energy Gun 13 | . . 2 3 1 2 . . 1 . 2 1 . 1 Energy Cannon 1 | . . . . . . . . 1 . . . . . Ballistic Gun 9 | 2 2 1 1 . . 1 . . 1 . . . 1 Ballistic Cannon . | . . . . . . . . . . . . . . Launcher 2 | . . . . . 1 . . . . . . 1 . Special Weapon 2 | . . . . . . . . . . 1 1 . . Impact Weapon 2 | . . . . . 1 . . 1 . . . . . Slashing Weapon 1 | . 1 . . . . . . . . . . . . Piercing Weapon . | . . . . . . . . . . . . . . Special Melee Weapon 2 | . 1 . . . . . . . 1 . . . . Unidentified Prototypes 10 | . . 1 3 . . . 1 1 . 3 . 1 . Parts Lost 53 | . 1 2 . . 14 . 3 3 1 1 1 1 26 Power 10 | . . . . . 2 . . 1 . 1 . . 6 Propulsion 13 | . . 2 . . 4 . 1 . . . . 1 5 Utility 15 | . . . . . 3 . 2 . 1 . . . 9 Weapon 15 | . 1 . . . 5 . . 2 . . 1 . 6 Highest Loss Streak 24 | . 1 2 . . 5 . 3 3 1 1 1 1 24 To Critical Strikes 1 | . . . . . . . . . . . . . 1 Average Backups 11 | 4 10 14 14 14 11 10 9 9 9 9 9 10 7 Power . | . 1 1 1 1 . 1 1 . . . . 1 1 Propulsion 1 | 2 3 4 2 2 1 . . . . . . . . Utility 5 | . 3 4 6 7 6 6 4 4 5 5 5 5 2 Weapon 3 | . 1 3 3 4 2 2 3 4 4 3 3 3 2 Tool/Special . | . . . . . . . . . . . . . . Unused Backups 14 | . 4 . 5 . 2 1 . . . . . . 2 Power 1 | . . . 1 . . . . . . . . . . Propulsion 5 | . 2 . 2 . . 1 . . . . . . . Utility 6 | . 2 . . . 2 . . . . . . . 2 Weapon 2 | . . . 2 . . . . . . . . . . Tool/Special . | . . . . . . . . . . . . . . Average Slot Usage (%) 94 | . 97 95 99 92 93 100 91 88 93 93 93 90 81 Engine 5 | . 14 11 1 . 2 . . 5 5 8 . . . Core 3 | . . . 7 7 4 7 6 3 5 2 5 . . Reactor 1 | . . . . . . . . . . . 4 10 7 Treads 11 | . 9 29 31 23 13 . . . . . . . . Leg 2 | . 18 . . . . . . . . . . . . Hover 8 | . . . . . . . 10 15 23 23 23 23 14 Flight 4 | . . . 3 7 14 30 8 . . . . . . Device 17 | . 1 18 21 15 23 30 31 22 18 17 17 15 18 Storage 7 | . 14 11 9 7 7 7 6 5 5 5 5 5 5 Processor 4 | . . . . . . . 6 11 11 11 11 14 14 Hackware 3 | . . . . 7 7 7 6 5 5 5 5 5 3 Protection 5 | . 10 3 5 7 4 . . . 4 5 5 5 2 Energy Gun 5 | . . 8 13 15 7 . . 1 3 2 3 . 1 Ballistic Gun 6 | . 27 13 4 . 3 3 . . 1 2 . . 1 Peak Build Rating 105 | 6 8 16 40 40 43 32 46 71 72 79 85 98 105 Average Rating 43 | 4 7 13 34 39 33 31 43 59 70 70 80 91 85 On Entrance 43 | . 6 8 14 37 40 30 32 42 71 66 78 85 95 Avg Prop Armor Cover (%) 3 | . . . 6 1 1 . 3 5 . . . 3 3 Naked Turns . | . . . . . . . . . . . . . . Heaviest Build 58 | 13 29 38 40 40 48 22 26 37 43 42 57 57 58 Greatest Support 112 | 20 40 60 112 84 84 24 34 48 48 48 55 67 69 Greatest Overweight (x) 12 | 4 1 1 . . 8 . . 1 2 1 1 1 12 Average Overweight (x) . | . . . . . . . . . . . . . . Largest Inventory Capacity 15 | 8 15 15 15 15 15 10 10 10 10 10 10 10 10 Average Capacity 11 | 6 11 15 15 15 13 10 10 10 10 10 10 10 10 Most Carried 15 | 6 15 15 15 15 15 10 10 10 10 10 10 10 9 Average Carried 11 | 4 10 14 14 14 11 9 9 8 9 9 9 10 7 Final Capacity 15 | 8 15 15 15 15 10 10 10 10 10 10 10 10 10 Final Carried 15 | 6 15 15 15 15 10 10 10 10 9 10 10 10 3 Class Distribution -------------------- 42% | Mutant 28% | Scavenger-Mutant 9% | Infiltrator-Mutant 8% | Commander-Mutant 6% | Scavenger-Skirmisher 5% | Scavenger-Sprinter Dominant Class ---------------- Mutant | -10/Materials Mutant | -9/Materials Mutant | -8/Materials Mutant | -7/Factory Scavenger-Mutant | -7/Lower Caves Scavenger-Sprinter | -7/Lower Caves Scavenger-Mutant | -6/Factory Infiltrator-Mutant | -5/Factory Mutant | -5/Upper Caves Commander-Mutant | -5/Warlord Scavenger-Mutant | -4/Proximity Caves Scavenger-Mutant | -4/Factory Infiltrator-Mutant | -3/Research Resources | -11 -10 -9 -8 -7 -7 -7 -6 -5 -5 -5 -4 -4 -3 ----------- Run | Yrd Mat Mat Mat Fac Low Low Fac Fac Upp War Pro Fac Res Matter Collected 3232 | 213 306 273 313 . 347 104 . 129 163 551 664 50 119 Remotely . | . . . . . . . . . . . . . . Salvage Created 2479 | . 381 292 486 . 513 . 145 129 96 57 211 50 119 Parts 146 | . 32 21 27 . 28 . 13 . 4 3 9 1 8 Haulers Intercepted 2 | . . . 2 . . . . . . . . . . Recyclers Shooed 1 | . . . 1 . . . . . . . . . . Parts Field Recycled . | . . . . . . . . . . . . . . Retrieved Matter . | . . . . . . . . . . . . . . Parts Self-Destructed 31 | . . . . . 4 . . . 1 . 26 . . Prevented 12 | . . . . . 3 . . . 2 . 7 . . Parts Restored . | . . . . . . . . . . . . . . Kills | -11 -10 -9 -8 -7 -7 -7 -6 -5 -5 -5 -4 -4 -3 ------- Run | Yrd Mat Mat Mat Fac Low Low Fac Fac Upp War Pro Fac Res Combat Hostiles Destroyed 58 | . 14 7 4 . 15 . 5 1 1 1 4 2 4 Melee 1 | . 1 . . . . . . . . . . . . Guns 35 | . 13 7 4 . 7 . . . . 1 . . 3 Cannons 5 | . . . . . . . . 1 1 . . 2 1 AOE 14 | . . . . . 7 . 5 . . . 2 . . Classes Destroyed 12 | . 3 1 3 . . . 2 1 1 1 . . . Builder 4 | . . . . . . . 4 . . . . . . Hauler 2 | . . . 2 . . . . . . . . . . Recycler 1 | . . . 1 . . . . . . . . . . Minesweeper 1 | . . . . . . . . . 1 . . . . Mechanic 1 | . . . . . . . . 1 . . . . . Operator 1 | . . . . . . . 1 . . . . . . Watcher 5 | . 2 1 2 . . . . . . . . . . Swarmer 27 | . 9 . . . 8 . 2 . . . 2 2 4 Grunt 13 | . 5 3 1 . 1 . 3 . . . . . . Protector 1 | . . . . . . . . . . 1 . . . Sentry 10 | . . 4 2 . 1 . . 1 . . 2 . . Hunter 3 | . . . 1 . 1 . . . 1 . . . . Thug 4 | . . . . . 4 . . . . . . . . Best Kill Streak 8 | . 3 5 3 . 4 . 8 2 1 1 3 2 2 Combat Bots Only 5 | . 3 5 1 . 4 . 5 1 1 1 3 2 2 Max Kills in Single Turn 4 | . 1 1 1 . 2 . 4 1 1 1 2 1 1 Gunslinging . | . . . . . . . . . . . . . . Exploded 3 | . . . . . 2 . 3 . . . 2 . . Melee 1 | . 1 . . . . . . . . . . . . Uniques/NPCs Destroyed . | . . . . . . . . . . . . . . Combat | -11 -10 -9 -8 -7 -7 -7 -6 -5 -5 -5 -4 -4 -3 -------- Run | Yrd Mat Mat Mat Fac Low Low Fac Fac Upp War Pro Fac Res Hostile Shots Fired 794 | . 94 56 52 . 184 . 61 11 21 11 43 15 246 Missed 254 | . 29 5 17 . 52 . 35 2 8 4 18 7 77 Hits 540 | . 65 51 35 . 132 . 26 9 13 7 25 8 169 Projectile 540 | . 65 51 35 . 132 . 26 9 13 7 25 8 169 Critical Strikes 16 | . . 3 2 . 3 . . . . . 1 1 6 Damage Taken 9306 | . 622 694 546 . 1735 . 513 217 299 255 516 155 3754 Core 2164 | . 89 72 53 . 309 . 132 20 35 7 122 13 1312 Absorbed by Shields 154 | . . . . . . . 44 . . 66 44 . . Redirected to Shielding 93 | . . . . . . . . . . . . . 93 Regen/Repaired (Parts) 547 | . . . . . . . . . . 272 . 275 . Core Remaining (%) 81 | 100 64 82 90 . . 55 84 . . . 81 98 . Volleys Fired 315 | . 60 20 29 . 67 . 12 5 18 22 49 8 25 Largest 2 | . 2 2 2 . 2 . 2 2 2 1 2 1 2 Hottest 163 | . 40 88 113 . 118 . 99 158 148 98 163 98 115 Shots Fired 479 | . 116 40 56 . 97 . 15 8 23 22 53 8 41 Gun 384 | . 116 40 56 . 83 . 6 3 18 11 17 . 34 Cannon 33 | . . . . . . . . 5 5 1 8 8 6 Launcher 39 | . . . . . 14 . 9 . . 10 5 . 1 Special 23 | . . . . . . . . . . . 23 . . Kinetic 223 | . 116 22 14 . 38 . 3 2 13 . . . 15 Thermal 120 | . . 18 22 . 28 . 3 5 5 1 8 8 22 Explosive 39 | . . . . . 14 . 9 . . 10 5 . 1 Electromagnetic 59 | . . . 20 . 17 . . 1 5 . 16 . . Entropic 15 | . . . . . . . . . . 11 1 . 3 Robot Hit Streak 22 | . 5 9 7 . 22 . 3 8 16 9 22 3 5 Robot Miss Streak 6 | . 6 4 5 . 3 . 3 2 3 2 2 1 3 Penetration Max . | . . . . . . . . . . . . . . Secondary Targets 4 | . . 1 . . 2 . . . . . . . 1 Max Gunslinging Chain 1 | . . 1 . . 1 . . . . . . . 1 Shots Hit Robots 304 | . 59 35 36 . 69 . 7 7 17 12 38 3 21 Core Hits 183 | . 26 26 19 . 38 . 13 4 7 27 7 2 14 Critical Kills 2 | . . . . . 1 . . . . . 1 . . Critical Parts Destroyed 3 | . 1 . . . 2 . . . . . . . . Critical Strikes 12 | . 1 . 2 . 4 . . . . . 2 . 3 Burn 6 | . . . 2 . 1 . . . . . . . 3 Meltdown 1 | . . . . . . . . . . . 1 . . Destroy 2 | . 1 . . . 1 . . . . . . . . Corrupt 1 | . . . . . . . . . . . 1 . . Smash 2 | . . . . . 2 . . . . . . . . Melee Attacks 39 | . 3 1 . . 2 . 4 6 . . 3 8 12 Impact 35 | . . . . . 2 . 4 6 . . 3 8 12 Slashing 2 | . 1 1 . . . . . . . . . . . Piercing . | . . . . . . . . . . . . . . Sneak Attacks 1 | . . . . . . . . 1 . . . . . Combat Hostiles . | . . . . . . . . . . . . . . Follow-up Attacks . | . . . . . . . . . . . . . . Damage Inflicted 7370 | . 591 512 660 . 1323 . 961 263 443 1103 590 102 822 Guns 4067 | . 569 512 620 . 818 . 52 63 263 368 341 . 461 Cannons 622 | . . . . . . . . 131 133 26 135 102 95 Explosions 2526 | . . . 40 . 468 . 909 . 47 709 114 . 239 Melee 128 | . 22 . . . 37 . . 69 . . . . . Ramming 27 | . . . . . . . . . . . . . 27 Kinetic 1575 | . 569 250 65 . 268 . 30 63 130 . . . 200 Thermal 2056 | . . 262 175 . 348 . 477 131 180 26 135 102 220 Explosive 1984 | . . . . . 468 . 454 . . 709 114 . 239 Electromagnetic 1052 | . . . 420 . 202 . . . 133 . 297 . . Impact 106 | . . . . . 37 . . 69 . . . . . Slashing 22 | . 22 . . . . . . . . . . . . Piercing . | . . . . . . . . . . . . . . Entropic 548 | . . . . . . . . . . 368 44 . 136 Highest Corruption 1 | . . . . . . . . . . 1 1 . . Average Corruption 1 | . . . . . . . . . . 1 1 . . Corruption Purged . | . . . . . . . . . . . . . . Corruption Blocked . | . . . . . . . . . . . . . . Effects 4 | . . . . . . . . . . 1 3 . . Message Errors 1 | . . . . . . . . . . 1 . . . Matter Fused 2 | . . . . . . . . . . . 2 . . Misfires 1 | . . . . . . . . . . . 1 . . Overload Shots . | . . . . . . . . . . . . . . Overflow Damage 246 | . . . . . 42 . 42 54 58 . 24 . 26 Projectiles 27 | . . . . . . . . . . . 24 . 3 Explosions 128 | . . . . . 5 . 42 . 58 . . . 23 Melee 91 | . . . . . 37 . . 54 . . . . . Knockbacks 1 | . . . . . . . . 1 . . . . . Impact 1 | . . . . . . . . 1 . . . . . Kinetic . | . . . . . . . . . . . . . . Secondary . | . . . . . . . . . . . . . . Self-Inflicted Damage 268 | . . . 46 . . . 126 . 71 12 . . 13 Shots 7 | . . . 1 . . . 4 . 1 1 . . . Rammed 2 | . . . . . . . . . . . . . 2 Targets Rammed 2 | . . . . . . . . . . . . . 2 Kicked . | . . . . . . . . . . . . . . Crushed . | . . . . . . . . . . . . . . Highest Temperature 497 | . 34 497 81 . 248 . . 51 344 69 270 72 140 Average Temperature 63 | . 8 184 25 . 76 . . 27 151 19 67 26 42 Received Heat Transfer 1855 | . 90 324 243 . 624 . 129 36 . 42 49 27 291 Effects 8 | . . 4 . . 3 . . . 1 . . . . Shutdowns 2 | . . 2 . . . . . . . . . . . Energy Bleed 2 | . . 1 . . . . . . 1 . . . . Interference 4 | . . 1 . . 3 . . . . . . . . Siege Activations . | . . . . . . . . . . . . . . Martial Activations . | . . . . . . . . . . . . . . Shielding Activations . | . . . . . . . . . . . . . . Robots Disrupted 2 | . . . . . 1 . . . . . 1 . . Combat Hostiles 2 | . . . . . 1 . . . . . 1 . . Robots Corrupted 3 | . . . . . 1 . . 1 . . 1 . . Combat Hostiles 2 | . . . . . 1 . . . . . 1 . . Parts Fried 13 | . . . 3 . 5 . . 1 2 . 2 . . Impact Corruptions 4 | . . . . . 2 . . 2 . . . . . Robots Melted 1 | . . . . . . . . . . . 1 . . Combat Hostiles 1 | . . . . . . . . . . . 1 . . Parts Melted 4 | . . . 2 . . . . . 1 . 1 . . Heat Transferred 3521 | . . 320 531 . 814 . 437 200 250 25 200 150 594 Parts Sabotaged . | . . . . . . . . . . . . . . Parts Stolen . | . . . . . . . . . . . . . . Parts Stripped . | . . . . . . . . . . . . . . Power Chain Reactions 2 | . . . 1 . . . . . 1 . . . . Alert | -11 -10 -9 -8 -7 -7 -7 -6 -5 -5 -5 -4 -4 -3 ------- Run | Yrd Mat Mat Mat Fac Low Low Fac Fac Upp War Pro Fac Res Maximum Alert Level 1 | . . . . . . . 1 . . . . 1 . Low Security (%) 91 | 100 100 100 100 100 . . 87 100 . . . 25 100 Level 1 8 | . . . . . . . 12 . . . . 75 . Level 2 . | . . . . . . . . . . . . . . Level 3 . | . . . . . . . . . . . . . . Level 4 . | . . . . . . . . . . . . . . Level 5 . | . . . . . . . . . . . . . . High Security . | . . . . . . . . . . . . . . Max Security . | . . . . . . . . . . . . . . Peak Influence 331 | . 173 90 44 16 . . 331 161 . . . 300 144 Initial 300 | . . 35 3 16 . . 18 161 . . . 300 48 Average 61 | . 79 27 5 2 . . 47 130 . . . 221 57 Influence Increases 3071 | . 414 197 197 5 325 . 425 88 35 78 317 584 406 Destroy 0b10 Robot/C 1240 | . 280 140 80 . 220 . 100 20 20 20 140 140 80 Destroy 0b10 Robot/NC 90 | . 10 5 25 . . . 25 5 5 5 10 . . Destroy Leader 224 | . 44 52 38 . 30 . 10 10 10 . . 10 20 Allied During Kill 34 | . . . . . . . . . . 8 17 9 . Successful Hack 57 | . 5 . 19 5 . . 21 . . . . 7 . Select Force Hacks 30 | . . . 30 . . . . . . . . . . Disable Machine 105 | . . . . . . . 90 . . . . 15 . Destroy Structure 136 | . . . 5 . . . 59 8 . . . 28 36 Advance Influence 300 | . . . . . . . . . . . . 300 . Partial Spotted 45 | . . . . . . . . 15 . . . 15 15 Lose Combat Pursuer 810 | . 75 . . . 75 . 120 30 . 45 150 60 255 Influence Decreases 3071 | . 329 272 169 43 188 107 124 300 154 78 317 490 500 Entered New Map 379 | . . 50 7 22 . 27 12 170 45 . . . 46 Time Decay 1694 | . 319 202 162 21 137 80 82 100 99 58 144 190 100 Search Patrol Dispatched 100 | . . . . . . . . . . . . 100 . Lost Part 394 | . 10 20 . . 51 . 30 30 10 . 10 10 223 Lost Ally 223 | . . . . . . . . . . 20 163 40 . Purge Threat 281 | . . . . . . . . . . . . 150 131 Squads Dispatched 11 | . 1 1 1 1 . . 5 1 . . . . 1 Investigation 4 | . . . 1 . . . 1 1 . . . . 1 Extermination . | . . . . . . . . . . . . . . Reinforcement 7 | . 1 1 . 1 . . 4 . . . . . . Assault . | . . . . . . . . . . . . . . Garrison . | . . . . . . . . . . . . . . Intercept . | . . . . . . . . . . . . . . Searches Triggered 1 | . . . . . . . . . . . . 1 . Construction Impeded 1 | . . . . . . . 1 . . . . . . Haulers Reinforced . | . . . . . . . . . . . . . . Active Scanning Responses . | . . . . . . . . . . . . . . Cargo Convoy Interrupts . | . . . . . . . . . . . . . . Stealth | -11 -10 -9 -8 -7 -7 -7 -6 -5 -5 -5 -4 -4 -3 --------- Run | Yrd Mat Mat Mat Fac Low Low Fac Fac Upp War Pro Fac Res Distress Signals 8 | . 1 . 1 . . . 1 . . 2 2 . 1 Communications Jammed 56 | . . . . . . . . . . . . . 56 Distress Signals 56 | . . . . . . . . . . . . . 56 Times Spotted 206 | . 23 9 17 1 21 . 23 4 1 36 23 8 40 Peak Tracking Total 20 | . 3 5 6 1 3 . 16 2 1 11 7 5 20 Tactical Retreats 25 | . 4 . . . 4 . 3 1 . 2 5 2 4 Traps | -11 -10 -9 -8 -7 -7 -7 -6 -5 -5 -5 -4 -4 -3 ------- Run | Yrd Mat Mat Mat Fac Low Low Fac Fac Upp War Pro Fac Res Traps Triggered 3 | . 2 . 1 . . . . . . . . . . Indirectly . | . . . . . . . . . . . . . . Trap Hack Attempts . | . . . . . . . . . . . . . . Triggered . | . . . . . . . . . . . . . . Disarmed . | . . . . . . . . . . . . . . Reprogrammed . | . . . . . . . . . . . . . . Reused . | . . . . . . . . . . . . . . Traps Extracted . | . . . . . . . . . . . . . . Installed . | . . . . . . . . . . . . . . Triggered . | . . . . . . . . . . . . . . Machines | -11 -10 -9 -8 -7 -7 -7 -6 -5 -5 -5 -4 -4 -3 ---------- Run | Yrd Mat Mat Mat Fac Low Low Fac Fac Upp War Pro Fac Res Machines Disabled 8 | . . . . . . . 6 . . 1 . 1 . Max in Single Turn 4 | . . . . . . . 4 . . 1 . . . Machines Repaired . | . . . . . . . . . . . . . . Machines Dismantled . | . . . . . . . . . . . . . . Machines Sabotaged . | . . . . . . . . . . . . . . Overloaded Fab Kills . | . . . . . . . . . . . . . . Hacking | -11 -10 -9 -8 -7 -7 -7 -6 -5 -5 -5 -4 -4 -3 --------- Run | Yrd Mat Mat Mat Fac Low Low Fac Fac Upp War Pro Fac Res Machines Accessed 37 | . 5 1 5 2 . 1 4 3 . 9 1 4 2 Terminals 17 | . 4 1 3 1 . 1 2 1 . . 1 2 1 Fabricators 3 | . . . . 1 . . 1 . . . . 1 . Repair Stations 1 | . . . . . . . . . . . . 1 . Recycling Units 5 | . 1 . 1 . . . 1 2 . . . . . Scanalyzers 2 | . . . 1 . . . . . . . . . 1 Garrison Access . | . . . . . . . . . . . . . . Total Hacks 87 | . 10 3 16 4 . 1 6 8 . 21 1 11 6 Successful 64 | . 5 . 13 3 . 1 3 3 . 21 1 10 4 Failed 23 | . 5 3 3 1 . . 3 5 . . . 1 2 Catastrophic 4 | . 1 1 1 . . . 1 . . . . . . Database Lockouts . | . . . . . . . . . . . . . . Manual 17 | . 4 . 5 2 . . 3 2 . . . 1 . Terminals 42 | . 9 3 12 3 . 1 4 3 . . 1 4 2 Fabricators 3 | . . . . 1 . . 1 . . . . 1 . Repair Stations 6 | . . . . . . . . . . . . 6 . Recycling Units 9 | . 1 . 2 . . . 1 5 . . . . . Scanalyzers 6 | . . . 2 . . . . . . . . . 4 Garrison Access . | . . . . . . . . . . . . . . Terminal Hacks 38 | . 2 . 6 1 . 1 1 1 . 21 1 3 1 Record 24 | . . . 1 1 . 1 1 1 . 19 . . . Open Door 3 | . . . . . . . . . . 2 1 . . Branch Access Points 1 | . . . 1 . . . . . . . . . . Emergency Access Points 3 | . . . 3 . . . . . . . . . . Unreport Threat 2 | . . . . . . . . . . . . 1 1 Locate Traps 3 | . 2 . . . . . . . . . . 1 . Maintenance Status 2 | . . . 1 . . . . . . . . 1 . Fabricator Hacks 2 | . . . . 1 . . . . . . . 1 . Network Status 2 | . . . . 1 . . . . . . . 1 . Repair Station Hacks 6 | . . . . . . . . . . . . 6 . Scan Component 3 | . . . . . . . . . . . . 3 . Repair 3 | . . . . . . . . . . . . 3 . Recycling Unit Hacks 4 | . 1 . 1 . . . 1 1 . . . . . Report Inventory 4 | . 1 . 1 . . . 1 1 . . . . . Scanalyzer 5 | . . . 2 . . . . . . . . . 3 Retrieve Study 5 | . . . 2 . . . . . . . . . 3 Garrison Access Hacks . | . . . . . . . . . . . . . . Unauthorized Hacks 9 | . 2 . 4 1 . . 1 1 . . . . . Terminals 8 | . 2 . 3 1 . . 1 1 . . . . . Assimilate 4 | . . . 2 1 . . 1 . . . . . . Botnet 4 | . 2 . 1 . . . . 1 . . . . . Fabricators . | . . . . . . . . . . . . . . Repair Stations . | . . . . . . . . . . . . . . Recycling Units 1 | . . . 1 . . . . . . . . . . Tunnel 1 | . . . 1 . . . . . . . . . . Scanalyzers . | . . . . . . . . . . . . . . Garrison Access . | . . . . . . . . . . . . . . Data Cores Recovered . | . . . . . . . . . . . . . . Used . | . . . . . . . . . . . . . . Hacking Detections 21 | . 2 1 4 2 . 1 2 3 . . . 4 2 Full Trace Events 3 | . . . . . . . 1 1 . . . . 1 Feedback Events . | . . . . . . . . . . . . . . Feedback Blocked . | . . . . . . . . . . . . . . Robot Schematics Acquired . | . . . . . . . . . . . . . . Robots Built . | . . . . . . . . . . . . . . Authchips . | . . . . . . . . . . . . . . Time . | . . . . . . . . . . . . . . Total Robot Build Rating . | . . . . . . . . . . . . . . Part Schematics Acquired . | . . . . . . . . . . . . . . Parts Built . | . . . . . . . . . . . . . . Authchips . | . . . . . . . . . . . . . . Time . | . . . . . . . . . . . . . . Total Part Build Rating . | . . . . . . . . . . . . . . Part Studies Acquired 5 | . . . 2 . . . . . . . . . 3 Parts Repaired 3 | . . . . . . . . . . . . 3 . Time 186 | . . . . . . . . . . . . 186 . Parts Recycled . | . . . . . . . . . . . . . . Recycled Matter . | . . . . . . . . . . . . . . Retrieved Matter . | . . . . . . . . . . . . . . Retrieved Components . | . . . . . . . . . . . . . . Parts Scanalyzed . | . . . . . . . . . . . . . . Part Schematics Acquired . | . . . . . . . . . . . . . . Parts Damaged . | . . . . . . . . . . . . . . Bothacking | -11 -10 -9 -8 -7 -7 -7 -6 -5 -5 -5 -4 -4 -3 ------------ Run | Yrd Mat Mat Mat Fac Low Low Fac Fac Upp War Pro Fac Res Used RIF Installer . | . . . . . . . . . . . . . . Robots Hacked . | . . . . . . . . . . . . . . Non-combat . | . . . . . . . . . . . . . . Combat . | . . . . . . . . . . . . . . Robot Hacks Applied . | . . . . . . . . . . . . . . Relay Couplers Released . | . . . . . . . . . . . . . . Fabnet Peak Effective % . | . . . . . . . . . . . . . . Robots Rewired 17 | . . . . . . . . . . 5 12 . . Allies Hacked . | . . . . . . . . . . . . . . Hacks Repelled . | . . . . . . . . . . . . . . Allies | -11 -10 -9 -8 -7 -7 -7 -6 -5 -5 -5 -4 -4 -3 -------- Run | Yrd Mat Mat Mat Fac Low Low Fac Fac Upp War Pro Fac Res Total Allies 18 | . . . 1 . . . . . . 5 12 . . Largest Group 5 | . . . 1 . . . . . . 5 5 2 . Highest-Rated Group 267 | . . . 10 . . . . . . 267 241 112 . Highest-Rated Ally 64 | . . . 10 . . . . . . 64 64 56 . Total Orders 3 | . . . . . . . . . . 2 1 . . FOLLOW 1 | . . . . . . . . . . 1 . . . AID 2 | . . . . . . . . . . 1 1 . . Ally Attacks 63 | . . . . . . . . . . 10 38 15 . Total Damage 2068 | . . . . . . . . . . 524 1079 465 . Kills 11 | . . . . . . . . . . 1 5 5 . Allies Corrupted . | . . . . . . . . . . . . . . Allies Melted . | . . . . . . . . . . . . . . Intel | -11 -10 -9 -8 -7 -7 -7 -6 -5 -5 -5 -4 -4 -3 ------- Run | Yrd Mat Mat Mat Fac Low Low Fac Fac Upp War Pro Fac Res Active Infowar (turns) 5736 | . 81 402 1031 214 1070 161 316 216 290 821 526 388 220 Optics 2777 | . . . . . . . 316 216 290 821 526 388 220 Sensors 1642 | . . 215 245 . 877 161 144 . . . . . . Terrain 830 | . 81 144 207 . 398 . . . . . . . . Structural 4162 | . . 402 361 . 724 116 145 216 290 821 526 388 173 Cloaking 1986 | . . . . . . . . 59 285 821 475 151 195 Jamming 1643 | . . . 872 214 241 . 11 107 . . . . 198 Robot Analysis Total . | . . . . . . . . . . . . . . Derelict Logs Recovered 4 | . . . . . 2 . . . . . 2 . . Drone Launches . | . . . . . . . . . . . . . . Drone Recoveries . | . . . . . . . . . . . . . . Exploration | -11 -10 -9 -8 -7 -7 -7 -6 -5 -5 -5 -4 -4 -3 ------------- Run | Yrd Mat Mat Mat Fac Low Low Fac Fac Upp War Pro Fac Res Turns Passed 7005 | 78 1076 495 1031 214 1173 161 316 216 290 821 526 388 220 Spaces Moved 7055 | 47 587 233 532 132 1537 482 451 271 379 1300 678 287 139 Core 26 | 21 . . . . 1 . . . . . . . 4 Treads 1473 | . 225 233 532 132 351 . . . . . . . . Legs 388 | 26 362 . . . . . . . . . . . . Wheels 1 | . . . . . . . . . . . . . 1 Hover 3445 | . . . . . . . 396 271 379 1300 678 287 134 Flight 1722 | . . . . . 1185 482 55 . . . . . . Fastest Speed 28 | 50 120 160 160 160 28 28 28 45 45 45 42 38 47 Average Speed 74 | 135 144 162 160 160 61 28 48 53 57 45 57 52 67 Slowest Speed 650 | 250 190 240 160 160 450 28 60 115 160 98 101 103 650 Overloaded Moves 179 | . . . . . . . . . . . 108 10 61 Propulsion Burnouts . | . . . . . . . . . . . . . . Robots Hopped . | . . . . . . . . . . . . . . Potential Cave-ins 16 | . . . . . . . . . . 16 . . . Cave-ins Triggered . | . . . . . . . . . . . . . . Exploration Rate (%) 37 | 3 79 20 39 2 98 36 21 9 43 96 60 10 9 Regions Visited 13 Branch Regions 5 Pre-discovered Areas 3 | . . . 1 . . . . . . 1 1 . . Known Exits Taken 1 | . . . . . . . . . . . . 1 . Unknown Exits Taken 12 | 1 1 1 1 1 1 1 1 1 1 1 1 . . Scrap Searched 9 | . . . . . 4 3 . . 1 . 1 . . Spaces Dug 25 | . . . . . . . 4 3 . . 1 12 5 Terrain Destroyed 340 | . . . 8 . 101 . 66 4 7 69 54 13 18 Melee 21 | . . . . . . . 4 3 . . 1 8 5 Projectile 12 | . . . . . . . . 1 1 . 2 5 3 AOE 307 | . . . 8 . 101 . 62 . 6 69 51 . 10 Terrain Rammed . | . . . . . . . . . . . . . . Walls Destroyed . | . . . . . . . . . . . . . . Machines Disabled . | . . . . . . . . . . . . . . Actions | -11 -10 -9 -8 -7 -7 -7 -6 -5 -5 -5 -4 -4 -3 --------- Run | Yrd Mat Mat Mat Fac Low Low Fac Fac Upp War Pro Fac Res Total 8295 | 58 715 309 662 135 1673 507 523 319 427 1504 769 496 198 Wait 520 | . 24 18 38 . 21 21 38 15 23 128 11 183 . Move 7042 | 46 586 232 531 131 1536 481 450 270 378 1299 677 286 139 Hop . | . . . . . . . . . . . . . . Pick Up 66 | 6 12 7 15 . 9 2 4 5 1 2 1 . 2 Fast Attach 56 | 6 5 6 7 . 6 . 3 4 1 7 1 8 2 Attach 40 | . . 1 2 1 15 . 2 6 1 1 1 . 10 Detach 7 | . 1 . . . 4 . . 1 . . 1 . . Swap 97 | . 12 11 16 2 7 1 5 4 3 10 19 1 6 Drop 86 | . 12 13 24 1 6 2 5 3 2 10 6 2 . Fire 315 | . 60 20 29 . 67 . 12 5 18 22 49 8 25 Melee 39 | . 3 1 . . 2 . 4 6 . . 3 8 12 Ram 2 | . . . . . . . . . . . . . 2 Kick . | . . . . . . . . . . . . . . Crush . | . . . . . . . . . . . . . . Escape Stasis . | . . . . . . . . . . . . . . Rewire 25 | . . . . . . . . . . 25 . . . Trap . | . . . . . . . . . . . . . . Miscellaneous . | . . . . . . . . . . . . . . Route ------- -11/Scrapyard -10/Materials (discovered 3 exits: *Mat x2 / [*Min]) -9/Materials -8/Materials -7/Factory -7/Lower Caves -7/Lower Caves -6/Factory (discovered 2 exits: *Fac / Low) -5/Factory -5/Upper Caves -5/Warlord -4/Proximity Caves -4/Factory -3/Research (discovered 2 exits: Res / Qua) History --------- Turn | Location | Event 28 | -11/Scrapyard | Discovered new exit (range 14) 79 | -11/Scrapyard | Entered Materials 264 | -10/Materials | Discovered new exit (range 11) 316 | -10/Materials | Build established: Mutant 664 | -10/Materials | Discovered new exit (range 5) 1068 | -10/Materials | Discovered new exit (range 16) 1155 | -10/Materials | Entered another Materials area 1155 | -9/Materials | Evolved 2 slots: Propulsion x1, Utility x1 1584 | -9/Materials | Discovered new exit (range 15) 1650 | -9/Materials | Entered another Materials area 1650 | -8/Materials | Evolved 2 slots: Propulsion x1, Utility x1 2663 | -8/Materials | Discovered new exit (range 8) 2681 | -8/Materials | Entered Factory 2681 | -7/Factory | Evolved 2 slots: Utility x2 2721 | -7/Factory | Discovered new exit (range 11) 2895 | -7/Factory | Entered Lower Caves 3043 | -7/Lower Caves | Ambushed by wild Derelicts 3485 | -7/Lower Caves | Build established: Scavenger-Skirmisher 3487 | -7/Lower Caves | Attracted the attention of an 0b10 checkpoint 3581 | -7/Lower Caves | Lost 3 parts (1n2w) 3622 | -7/Lower Caves | Lost 5 parts (1p2n1u1w) 3679 | -7/Lower Caves | Learned location of 1 exit from Factory 3680 | -7/Lower Caves | Learned Factory terminal intel 4046 | -7/Lower Caves | Discovered new exit (range 6) 4068 | -7/Lower Caves | Entered another Lower Caves area 4088 | -7/Lower Caves | Discovered new exit (range 14) 4199 | -7/Lower Caves | Build established: Scavenger-Sprinter 4229 | -7/Lower Caves | Entered Factory 4229 | -6/Factory | Evolved 2 slots: Utility x2 4230 | -6/Factory | Identified exit to Lower Caves 4231 | -6/Factory | Loaded intel: 27 terminal locations 4534 | -6/Factory | Discovered new exit (range 22) 4538 | -6/Factory | Lost 3 parts (1n2u) 4545 | -6/Factory | Entered another Factory area 4545 | -5/Factory | Evolved 2 slots: Power x1, Propulsion x1 4648 | -5/Factory | Lost 3 parts (1p2w) 4755 | -5/Factory | Discovered new exit (range 6) 4761 | -5/Factory | Entered Upper Caves 5044 | -5/Upper Caves | A Derelict revealed a hidden shortcut to "reach the base" 5051 | -5/Upper Caves | Entered Warlord 5078 | -5/Warlord | Discovered new exit (range 9) 5119 | -5/Warlord | Build established: Mutant 5243 | -5/Warlord | Found Prototype Device 5243 | -5/Warlord | Identified Minesniffer Drone Bay 5329 | -5/Warlord | Met Warlord 5345 | -5/Warlord | Warlord's base attacked by MAIN.C 5374 | -5/Warlord | Found Prototype Special Weapon 5374 | -5/Warlord | Identified RU-N14's Throwing Claymores v3 5427 | -5/Warlord | Learned 4 Research zone layouts 5427 | -5/Warlord | Learned 4 Testing zone layouts 5427 | -5/Warlord | Learned 4 Quarantine zone layouts 5427 | -5/Warlord | Learned Factory fabricator intel 5427 | -5/Warlord | Learned Armory recycling unit intel 5454 | -5/Warlord | Found Prototype Energy Gun 5454 | -5/Warlord | Identified Vortex Rifle 5456 | -5/Warlord | Found Vortex Rifle 5565 | -5/Warlord | Opened side exit 5613 | -5/Warlord | Build established: Commander-Mutant 5695 | -5/Warlord | Warlord forces counterattacked 5699 | -5/Warlord | Spotted B-86 Titan 5725 | -5/Warlord | Spotted B-75 Beast 5770 | -5/Warlord | Spotted Striker 5771 | -5/Warlord | Spotted Striker 5775 | -5/Warlord | Lost 3 allies 5784 | -5/Warlord | Spotted Executioner 5847 | -5/Warlord | Lost 7 allies 5870 | -5/Warlord | Spotted Striker 5871 | -5/Warlord | Spotted Striker 5872 | -5/Warlord | Entered Proximity Caves 5872 | -4/Proximity Caves | Accompanied by 3 allies 5874 | -4/Proximity Caves | Spotter reported a threat 5875 | -4/Proximity Caves | Spotter reported a threat 5891 | -4/Proximity Caves | Learned Research garrison access intel 5899 | -4/Proximity Caves | Lost 4 allies 6063 | -4/Proximity Caves | Attracted the attention of an 0b10 checkpoint 6127 | -4/Proximity Caves | Snuck into a huge 0b10 base via the rear entrance 6228 | -4/Proximity Caves | Spotted B-86 Titan 6229 | -4/Proximity Caves | Build established: Scavenger-Mutant 6318 | -4/Proximity Caves | Derelicts attacked a huge 0b10 base 6327 | -4/Proximity Caves | Lost 3 allies 6334 | -4/Proximity Caves | Discovered new exit (range 8) 6398 | -4/Proximity Caves | Entered Factory 6398 | -4/Factory | Accompanied by 2 allies 6398 | -4/Factory | Evolved 2 slots: Propulsion x1, Utility x1 6399 | -4/Factory | Loaded intel: 5 fabricator locations 6423 | -4/Factory | Lost 10 allies 6511 | -4/Factory | Repaired Cld. Aerolev Unit 6562 | -4/Factory | Repaired Gravmag Array 6620 | -4/Factory | Repaired Antigrav System 6648 | -4/Factory | Search patrols dispatched 6773 | -4/Factory | Discovered new exit (range 7) 6780 | -4/Factory | Identified exit to Research 6786 | -4/Factory | Entered Research 6786 | -3/Research | Evolved 2 slots: Utility x2 6787 | -3/Research | Identified exit to Quarantine 6788 | -3/Research | Identified exit to Research 6789 | -3/Research | Loaded intel: 3 garrison access locations 6991 | -3/Research | Core integrity fell below 50% 7002 | -3/Research | Core integrity fell below 20% 7006 | -3/Research | Destroyed by S-43 Plague with Heavy Machine Gun Last Messages --------------- 06981_ Lgt. Antimatter Reactor destroyed. 06984_ Gyrokinetic Inverter+ destroyed. 06985_ Transmission Jammer destroyed. 06989_ U-05 Engineer builds a Wall. 06992_ Beamcaster destroyed. 06993_ Destroyed Xenon Bombardment Thruster. 06993_ U-05 Engineer lays Concrete. 06994_ Critical hit (Destroy). 06994_ Mni. Grenade Launcher destroyed. 06994_ U-05 Engineer builds a Wall. 06996_ U-05 Engineer lays Concrete. 06996_ Destroyed Wheel. 06996_ Lgt. Antimatter Reactor destroyed. 06997_ U-05 Engineer lays Concrete. 06998_ Antimatter Reactor destroyed. 06998_ Destroyed Structural Scanner. 06998_ Vortex Rifle destroyed. 07000_ U-05 Engineer lays Concrete. 07005_ Med. Storage Unit destroyed. 07006_ U-05 Engineer lays Concrete. Map ----- +----------------------------------------------------+ | ?????????????????????????????????????????????????? | | ?????????????????????????????????????????????????? | | ?????????????????????????????????????????????????? | | ?????????????????????????????????????????????????? | | ?????????????????????????????????????????????????? | | ?????????????????????????????????!???????????????? | | ?????????????????????????????????!???????????????? | | ????????????????????????????????? ???????????????? | | ????????????????????????????????? ???????????????? | | ?????????????????????????????####+##?????????????? | | ?????????????????????????????# ?????????????? | | ?????????????????????????????# #?????????????? | | ?????????????????????????????# #?????????????? | | ?????????????????????????????# ##????????????? | | ?????????????????????????????# ????????????? | | ?????????????????????????????# ?????????????? | | ??" ## # #????# #?????????????? | | ??" ## # "" "" #????# #?????????????? | | ?? ## # ""S"" ###?## ??????????????? | | ?? ## # """" + ?? #??????????????? | | ?? #####################??# #??????????????? | | ??#####????# #????# #??????????????? | | ???????????# #????# #??????????????? | | ???????????# """ ###### #??????????????? | | ???????????# """ # s# #??????????????? | | ???????????# """ /@ ls# ############## # | | ???????????# """ # #/##/##############+# | | ???????????# """ g# # | | ???????????# ssgg # | | ???????????# """ s g !**# | | ???????????# "" F"" gsg# ] !**/ | | ???????????# """""" # !* # | | ???????????# """" s ug # ! | | ???????????############## # # | | ???????????????########## + [ # | | ???????????????# # ########### ! | | ???????????????# # # ==# | | ???????????????# """" # # # | | ???????????????# """" # # # | | ???????????????# """" # # ##/######## | | ???????????????# """" # # ## ######## | | ????????????????????????+ + """ ## ##?????? | | ??????????????????????? # # """ ## ##?????? | | ????????????????? # # """ ## ######## | | ?????????????????######## ############ ######## | | ????????????????## | | ????????????????## | | ????????????????## | | ????????????????## | | ????????????????## ? ##########+######+########## | +----------------------------------------------------+ Best States ------------- Heat Dissipation 65 Energy Generation 41 Energy Capacity 325 Matter Stores 300 Matter Capacity 300 Sight Range 22 Robot Scan Range 15 Terrain Scan Range 16 Terrain Scan Density 10 Jamming Range 12 Cloak Strength 2 Additional Mass Support 9 Armor Coverage 375 Utility Shielding 66 Evasion (%) 64 Recoil Reduction 4 Offensive Hacking 10 Item Schematics ----------------- None Robot Schematics ------------------ None Fabricated ------------ Nothing Repaired ---------- Cld. Aerolev Unit | 17% | -4/Factory Gravmag Array | 17% | -4/Factory Antigrav System | 21% | -4/Factory Studied --------- Flight Unit | -8/Materials | Hacked Lgt. Nuclear Core | -8/Materials | Hacked Imp. Antigrav System | -3/Research | Hacked Gravmag Array | -3/Research | Hacked Gyrokinetic Inverter | -3/Research | Hacked Alien Tech Used ----------------- None Achievements -------------- A Powerful Ally? Charge!!! Dangerous Findings Into The Breach Suspicious Total Silence Universal Adapter Challenges ------------ None Game ------ Seed GravjetAlloyPurifier Manual? 0 Play Time 03:30:39 Cumulative 61.1 hours Start 2026.08.12 @ 23:38:18 End 2026.08.13 @ 15:23:54 Sessions 1 Manual Loads 0 Difficulty Rogue Special Mode None Game No. 58 Rogue 56 Adventurer 2 Explorer 0 Win Type - Total 0 Types 0/0/0/0/0/0/0/0/0/0 Lore% 38 Gallery% 31 Achievement% 27 Wizard Run 0 Options --------- Layout 0 ASCII 0 Keyboard 0 Movement Mouse Keybinds 0 Fullscreen 2 Font 24/Smallcaps Map View 76x50 Zoom Use 0% Tactical HUD 1 Map Filters NONE Filters NONE Steam 1 RUN: 79a21db3-173f-4cca-bcd4-d3f771536c30